bitfinex/quotes_SOLUSD_20260217
["timestamp","ask_amount","ask_price","bid_price","bid_amount"]
[1771368234121,0.67315107,85.287,85.26,0.2]
[1771368234818,41.03838847,85.286,85.26,0.2]
[1771368235026,0.67315107,85.285,85.26,0.2]
[1771368236445,29.94456051,85.292,85.261,0.63270923]
[1771368236748,11.72392395,85.296,85.261,0.63270923]
[1771368236928,11.72209262,85.309,85.263,0.63270923]
[1771368237243,11.72209262,85.309,85.271,0.63270923]
[1771368239461,12.39524369,85.309,85.273,0.63270923]
[1771368239645,0.67315107,85.308,85.273,0.63270923]
[1771368239819,11.72209262,85.309,85.273,0.63270923]
[1771368240142,12.39524369,85.309,85.273,0.63270923]
[1771368240321,0.67315107,85.308,85.273,0.63270923]
[1771368240718,3.04954513,85.32,85.273,0.63270923]
[1771368240921,11.72096773,85.318,85.273,0.63270923]
[1771368241124,12.3941188,85.318,85.273,0.63270923]
[1771368241331,12.3941188,85.318,85.275,0.63270923]
[1771368241529,0.67315107,85.317,85.275,0.63270923]
[1771368243542,11.72113085,85.316,85.277,0.63270923]
[1771368243941,0.67315107,85.315,85.277,0.63270923]
[1771368244324,11.72113085,85.316,85.277,0.63270923]
[1771368245831,0.67315107,85.319,85.279,0.63270923]
[1771368246124,0.67315107,85.334,85.291,0.63270923]
[1771368246448,3.05221185,85.35,85.301,0.63270923]
[1771368246645,0.67315107,85.349,85.301,0.63270923]
[1771368247556,0.67315107,85.347,85.303,0.63270923]
[1771368248625,0.67315107,85.347,85.302,41.03069094]
[1771368248626,11.71673618,85.348,85.305,0.63270923]
[1771368249147,0.67315107,85.347,85.305,0.63270923]
[1771368251433,2.37906078,85.35,85.307,0.63270923]
[1771368251434,0.67315107,85.345,85.307,0.63270923]
[1771368251831,11.71701075,85.346,85.307,0.63270923]
[1771368255039,0.66428499,85.345,85.309,0.68343976]
[1771368256840,0.66428499,85.351,85.311,0.68343976]
[1771368258950,0.66428499,85.349,85.313,0.68343976]
[1771368262151,11.71673618,85.348,85.314,11.72140563]
[1771368262359,0.66428499,85.347,85.315,0.68343976]
[1771368265851,11.71701075,85.346,85.317,0.68343976]
[1771368266049,0.66428499,85.347,85.317,0.68343976]
[1771368266361,12.3811844,85.347,85.317,0.68343976]
[1771368267642,0.66428499,85.346,85.317,0.68343976]
[1771368267845,0.66428499,85.346,85.319,0.68343976]
[1771368269463,0.66428499,85.346,85.304,0.68343976]
[1771368269756,0.66428499,85.344,85.308,0.68343976]
[1771368273664,2.37906078,85.35,85.308,0.68343976]
[1771368273665,0.66428499,85.342,85.308,0.68343976]
[1771368276366,0.66428499,85.34,85.309,0.68343976]
[1771368276859,0.66428499,85.329,85.282,0.68343976]
[1771368277067,0.66428499,85.327,85.282,0.68343976]
[1771368277362,18.26,85.327,85.282,0.68343976]
[1771368277566,0.66428499,85.326,85.282,0.68343976]
[1771368278443,18.26,85.327,85.282,0.68343976]
[1771368278444,0.66428499,85.319,85.282,0.68343976]
[1771368281951,41.01963082,85.325,85.282,0.68343976]
[1771368281952,0.66428499,85.317,85.282,0.68343976]
[1771368284269,0.66428499,85.315,85.282,0.68343976]
[1771368287979,0.69931031,85.313,85.282,0.68343976]
[1771368288175,0.69931031,85.313,85.274,0.65060396]
[1771368290073,0.69931031,85.311,85.274,0.65060396]
[1771368290576,0.69931031,85.311,85.275,0.65060396]
[1771368293082,0.69931031,85.309,85.277,0.65060396]
[1771368295374,0.70696703,85.307,85.279,0.67857135]
[1771368298477,11.72250486,85.306,85.279,0.67857135]
[1771368298780,0.70696703,85.305,85.279,0.67857135]
[1771368300177,12.42974673,85.304,85.279,0.67857135]
[1771368300684,0.70696703,85.303,85.279,0.67857135]
[1771368302186,0.70696703,85.301,85.273,0.67857135]
[1771368304186,0.70696703,85.299,85.273,0.67857135]
[1771368305272,0.70696703,85.297,85.273,0.67857135]
[1771368305684,0.70696703,85.297,85.26,0.2]
[1771368307069,0.70696703,85.289,85.26,0.2]
[1771368311268,0.70696703,85.289,85.253,11.72972499]
[1771368311269,0.70696703,85.287,85.241,0.67857135]
[1771368311587,0.70696703,85.279,85.241,0.67857135]
[1771368314909,0.69366097,85.277,85.24,0.2]
[1771368315084,0.69366097,85.269,85.24,0.2]
[1771368317772,0.69366097,85.267,85.24,0.2]
[1771368320076,0.69366097,85.265,85.24,0.2]
[1771368322722,0.69366097,85.263,85.24,0.2]
[1771368325010,0.69366097,85.261,85.24,0.2]
[1771368325405,0.69366097,85.261,85.241,0.7043314]
[1771368327608,12.42203124,85.264,85.241,0.7043314]
[1771368327812,0.69366097,85.283,85.243,0.7043314]
[1771368328109,0.69366097,85.283,85.251,0.7043314]
[1771368329807,0.69366097,85.288,85.251,0.7043314]
[1771368330110,0.69366097,85.288,85.252,0.7043314]
[1771368331205,0.69366097,85.288,85.252,12.43426148]
[1771368331396,0.69366097,85.288,85.253,0.7043314]
[1771368332114,0.69366097,85.286,85.253,0.7043314]
[1771368335509,0.69366097,85.284,85.253,0.7043314]
[1771368337028,0.69366097,85.282,85.253,0.7043314]
[1771368343426,11.72594129,85.281,85.255,0.7043314]
[1771368344011,12.41960226,85.281,85.255,0.7043314]
[1771368344615,0.68078876,85.28,85.255,0.7043314]
[1771368345509,0.68078876,85.28,85.256,11.72937975]
[1771368345724,0.68078876,85.28,85.257,0.66213824]
[1771368346206,0.68078876,85.282,85.257,0.66213824]
[1771368347706,0.68078876,85.287,85.259,0.66213824]
[1771368348029,0.68078876,85.298,85.261,0.66213824]
[1771368350227,0.68078876,85.298,85.26,18.52]
[1771368350228,11.72374174,85.297,85.262,11.72855433]
[1771368350428,11.72374174,85.297,85.263,0.66213824]
[1771368350932,0.68078876,85.3,85.263,0.66213824]
[1771368351132,0.68078876,85.305,85.271,0.66213824]
[1771368351326,11.72154302,85.313,85.271,0.66213824]
[1771368351628,11.72154302,85.313,85.27,2.38044963]
[1771368351629,0.68078876,85.32,85.281,0.66213824]
[1771368351836,11.72044796,85.321,85.281,0.66213824]
[1771368352328,11.72044796,85.321,85.284,0.66213824]
[1771368353221,0.68078876,85.32,85.284,0.66213824]
[1771368353431,0.68078876,85.32,85.286,0.70575504]
[1771368353630,0.68078876,85.32,85.288,0.70575504]
[1771368354534,11.72071871,85.319,85.289,0.70575504]
[1771368357037,0.66575921,85.319,85.289,0.70575504]
[1771368357835,0.66575921,85.319,85.291,0.70575504]
[1771368362237,11.72085609,85.318,85.291,0.70575504]
[1771368362443,0.66575921,85.317,85.291,0.70575504]
[1771368368049,12.38689006,85.316,85.291,0.70575504]
[1771368368548,0.66575921,85.339,85.301,0.70575504]
[1771368368848,0.66575921,85.339,85.303,0.70575504]
[1771368369552,0.66575921,85.339,85.304,0.70575504]
[1771368372049,11.71810916,85.338,85.305,11.72264228]
[1771368372254,0.66575921,85.337,85.306,0.70575504]
[1771368373848,11.7183838,85.336,85.306,0.70575504]
[1771368374050,0.66575921,85.335,85.306,0.70575504]
[1771368375247,0.68741029,85.333,85.308,0.73514571]
[1771368377468,0.68741029,85.331,85.308,0.73514571]
[1771368379468,0.68741029,85.336,85.308,0.73514571]
[1771368381866,11.71852112,85.335,85.308,0.73514571]
[1771368382084,0.68741029,85.334,85.308,0.73514571]
[1771368383153,0.68741029,85.332,85.308,0.73514571]
[1771368386856,0.68741029,85.332,85.309,18.58]
[1771368387055,0.68741029,85.332,85.31,0.73514571]
[1771368387974,0.68741029,85.33,85.31,0.73514571]
[1771368397185,0.68741029,85.328,85.31,0.73514571]
[1771368402893,12.4070301,85.327,85.31,0.73514571]
[1771368404496,0.71044609,85.326,85.31,0.73514571]
[1771368405477,0.71044609,85.326,85.309,18.58]
[1771368405675,0.71044609,85.326,85.309,19.30531541]
[1771368405881,0.71044609,85.326,85.31,0.72531541]
[1771368413304,0.69398376,85.325,85.31,0.72531541]
[1771368413497,0.69398376,85.325,85.309,18.58]
[1771368413697,0.69398376,85.323,85.303,0.71525048]
[1771368414909,0.69398376,85.323,85.304,0.71525048]
[1771368416607,0.69398376,85.321,85.304,0.71525048]
[1771368418895,11.72058134,85.32,85.304,0.71525048]
[1771368422400,0.69398376,85.321,85.304,0.71525048]
[1771368423325,0.69398376,85.331,85.304,0.71525048]
[1771368424030,0.69398376,85.342,85.311,0.71525048]
[1771368424317,0.69398376,85.342,85.305,11.72264228]
[1771368424318,0.69398376,85.348,85.331,0.71525048]
[1771368424616,0.69398376,85.348,85.332,0.71525048]
[1771368424816,0.69398376,85.354,85.332,0.71525048]
[1771368425015,29.28624505,85.365,85.341,0.71525048]
[1771368425016,11.71451302,85.365,85.341,0.71525048]
[1771368425201,11.7138952,85.369,85.341,0.71525048]
[1771368425400,11.7138952,85.369,85.322,41.0210731]
[1771368425401,0.1,85.38,85.351,0.71525048]
[1771368425601,0.1,85.38,85.353,0.71525048]
[1771368426009,0.1,85.38,85.361,0.71525048]
[1771368426410,11.71065801,85.393,85.362,11.71481455]
[1771368426604,11.71065801,85.393,85.371,0.71525048]
[1771368426818,11.71065801,85.393,85.362,11.71481455]
[1771368426819,12.40254338,85.408,85.381,0.71525048]
[1771368427015,0.69398376,85.407,85.382,0.71525048]
[1771368429141,12.402763,85.406,85.382,0.71525048]
[1771368429641,11.70877924,85.406,85.384,0.71525048]
[1771368430442,0.1,85.41,85.384,0.71525048]
[1771368430754,0.69398376,85.419,85.4,2.373662]
[1771368430958,0.69398376,85.436,85.411,0.71525048]
[1771368431125,0.1,85.44,85.413,0.71525048]
[1771368431326,12.39824059,85.439,85.413,0.71525048]
[1771368431932,0.69398376,85.438,85.413,0.71525048]
[1771368432125,0.69398376,85.438,85.406,0.71525048]
[1771368432528,0.69398376,85.429,85.397,19.33525048]
[1771368432828,0.69398376,85.429,85.392,0.71525048]
[1771368433231,0.69398376,85.427,85.392,0.71525048]
[1771368434245,0.69398376,85.427,85.393,11.71056175]
[1771368434438,0.69398376,85.427,85.394,0.71525048]
[1771368436740,0.67960774,85.425,85.394,0.71525048]
[1771368438043,0.67960774,85.425,85.389,0.73627968]
[1771368442534,40.97209214,85.424,85.389,0.73627968]
[1771368442734,0.67960774,85.423,85.389,0.73627968]
[1771368445337,0.67960774,85.421,85.389,0.73627968]
[1771368447759,0.67960774,85.419,85.391,0.73627968]
[1771368452364,0.67960774,85.417,85.386,0.73627968]
[1771368454670,0.67960774,85.415,85.386,0.73627968]
[1771368454863,0.67960774,85.415,85.382,18.58]
[1771368455070,0.67960774,85.409,85.382,13.99224835]
[1771368455258,0.67960774,85.409,85.371,0.73627968]
[1771368456871,0.67960774,85.399,85.371,0.73627968]
[1771368457254,0.67960774,85.399,85.365,0.73627968]
[1771368459981,0.67960774,85.397,85.365,0.73627968]
[1771368461887,0.67960774,85.395,85.365,0.73627968]
[1771368464272,0.67960774,85.393,85.365,0.73627968]
[1771368467393,0.67684103,85.391,85.365,0.73627968]
[1771368473895,11.71097318,85.39,85.365,0.73627968]
[1771368474079,0.72584336,85.389,85.365,0.73627968]
[1771368476004,0.72584336,85.387,85.365,0.73627968]
[1771368481602,0.72584336,85.385,85.364,18.58]
[1771368482801,0.72584336,85.385,85.357,0.72922922]
[1771368484310,11.71179612,85.384,85.357,0.72922922]
[1771368484508,0.72584336,85.383,85.357,0.72922922]
[1771368487014,0.72584336,85.381,85.357,0.72922922]
[1771368489416,0.72584336,85.379,85.357,0.72922922]
[1771368491911,0.72584336,85.377,85.359,0.72922922]
[1771368492295,0.72584336,85.377,85.345,47.89278158]
[1771368492296,0.72584336,85.377,85.351,0.72922922]
[1771368493498,0.72584336,85.377,85.35,2.37498346]
[1771368493499,11.71289355,85.376,85.354,11.71591255]
[1771368493705,12.43873691,85.376,85.355,0.72922922]
[1771368493906,0.72584336,85.375,85.355,0.72922922]
[1771368499131,12.43889714,85.375,85.355,0.72922922]
[1771368500128,0.69685393,85.384,85.357,0.68922846]
[1771368501621,0.69685393,85.383,85.357,0.68922846]
[1771368502524,0.69685393,85.383,85.359,0.68922846]
[1771368502725,0.69685393,85.381,85.359,0.68922846]
[1771368505414,0.69685393,85.379,85.359,0.68922846]
[1771368512818,0.69685393,85.379,85.361,0.68922846]
[1771368516739,0.69685393,85.377,85.361,0.68922846]
[1771368521739,0.69685393,85.377,85.353,0.68922846]
[1771368522439,0.69685393,85.377,85.347,0.68922846]
[1771368523525,0.69685393,85.376,85.347,0.68922846]
[1771368526229,0.6750642,85.374,85.348,11.71673618]
[1771368527554,0.6750642,85.372,85.348,0.68606092]
[1771368528653,0.6750642,85.372,85.342,0.68606092]
[1771368532050,40.99752843,85.371,85.342,0.68606092]
[1771368532258,0.6750642,85.37,85.342,0.68606092]
[1771368533659,0.7037832,85.368,85.342,0.68606092]
[1771368537063,0.7037832,85.366,85.337,0.67568234]
[1771368538160,0.7037832,85.366,85.322,0.67568234]
[1771368539048,0.7037832,85.359,85.322,0.67568234]
[1771368539681,18.74,85.358,85.317,0.67568234]
[1771368539954,0.7037832,85.349,85.313,0.67568234]
[1771368541459,41.00857664,85.348,85.301,12.39887433]
[1771368541758,0.7037832,85.347,85.302,0.67568234]
[1771368542572,0.7037832,85.339,85.302,0.67568234]
[1771368542774,0.7037832,85.329,85.296,0.67568234]
[1771368543246,0.7037832,85.329,85.29,0.2]
[1771368543447,41.02299631,85.318,85.29,0.2]
[1771368543650,0.7037832,85.309,85.276,0.67568234]
[1771368543862,0.7037832,85.309,85.27,2.57498346]
[1771368543863,0.7037832,85.309,85.27,0.2]
[1771368545367,2.37498346,85.3,85.27,0.2]
[1771368545675,0.7037832,85.299,85.27,0.2]
[1771368546771,0.7037832,85.289,85.258,0.67568234]
[1771368547078,0.7037832,85.287,85.258,0.67568234]
[1771368547678,0.7037832,85.285,85.258,0.67568234]
[1771368548572,0.7037832,85.285,85.251,0.67568234]
[1771368548777,12.42931202,85.284,85.251,0.67568234]
[1771368550470,0.7037832,85.283,85.251,0.67568234]
[1771368550873,0.7037832,85.279,85.251,0.67568234]
[1771368551058,0.7037832,85.279,85.241,0.67568234]
[1771368551254,2.37498346,85.29,85.241,0.67568234]
[1771368551255,46.88472828,85.316,85.251,0.67568234]
[1771368551478,2.37498346,85.3,85.261,0.67568234]
[1771368551660,2.37498346,85.31,85.261,0.67568234]
[1771368551859,2.37982731,85.31,85.261,0.67568234]
[1771368552372,2.37982731,85.31,85.26,2.37982731]
[1771368552373,18.82,85.313,85.271,0.67568234]
[1771368553482,0.7037832,85.31,85.272,0.67568234]
[1771368557679,0.71509983,85.308,85.272,0.67568234]
[1771368559682,0.71509983,85.306,85.274,0.73530024]
[1771368561885,0.71509983,85.304,85.274,0.73530024]
[1771368563773,0.71509983,85.299,85.261,0.73530024]
[1771368563974,0.71509983,85.289,85.261,0.73530024]
[1771368564571,2.37982731,85.28,85.243,0.73530024]
[1771368564777,0.71509983,85.279,85.243,0.73530024]
[1771368566885,0.71509983,85.277,85.243,0.73530024]
[1771368567073,0.71509983,85.275,85.243,0.73530024]
[1771368569280,0.71509983,85.273,85.243,0.73530024]
[1771368573276,0.71509983,85.269,85.243,0.73530024]
[1771368573597,0.71509983,85.269,85.241,0.73530024]
[1771368574186,0.71509983,85.269,85.24,0.2]
[1771368574896,0.71509983,85.269,85.241,0.73530024]
[1771368575883,0.71509983,85.267,85.241,0.73530024]
[1771368578984,0.71509983,85.265,85.241,0.73530024]
[1771368579395,0.71509983,85.265,85.24,0.2]
[1771368579706,0.71509983,85.259,85.24,0.2]
[1771368581293,0.71509983,85.257,85.24,0.2]
[1771368581604,0.71509983,85.256,85.24,0.2]
[1771368583386,0.71509983,85.254,85.24,0.2]
[1771368584719,11.72979249,85.253,85.241,0.70436748]
[1771368585606,12.4521821,85.253,85.241,0.70436748]
[1771368586109,0.72238961,85.252,85.24,0.2]
[1771368586310,11.73006768,85.251,85.24,0.2]
[1771368586489,11.73006768,85.251,85.241,0.70436748]
[1771368588318,0.72238961,85.251,85.24,0.2]
[1771368591321,11.72990256,85.253,85.241,0.70436748]
[1771368592814,0.72238961,85.253,85.24,0.2]
[1771368593716,11.72993008,85.252,85.24,0.2]
[1771368596312,11.72937975,85.256,85.241,0.72251664]
[1771368598318,29.32001032,85.266,85.241,0.72251664]
[1771368598319,0.66041825,85.261,85.241,0.72251664]
[1771368602613,0.66041825,85.259,85.241,0.72251664]
[1771368605124,11.7291046,85.258,85.241,0.72251664]
[1771368605326,11.72862878,85.262,85.241,0.72251664]
[1771368608823,29.32035418,85.265,85.241,0.72251664]
[1771368609523,29.98077243,85.265,85.241,0.72251664]
[1771368609737,0.66041825,85.265,85.241,0.72251664]
[1771368611016,11.72827922,85.264,85.241,0.72251664]
[1771368612234,29.32001032,85.266,85.241,0.72251664]
[1771368612235,0.66041825,85.263,85.241,0.72251664]
[1771368612535,29.98042857,85.266,85.241,0.72251664]
[1771368612718,0.66041825,85.265,85.241,0.72251664]
[1771368614767,0.72147493,85.263,85.241,0.72251664]
[1771368615120,11.72757188,85.27,85.243,0.67612967]
[1771368615542,0.72147493,85.269,85.243,0.67612967]
[1771368619645,0.72147493,85.269,85.244,11.73103092]
[1771368619823,0.72147493,85.269,85.245,0.67612967]
[1771368620137,12.44849539,85.274,85.245,0.67612967]
[1771368620336,0.72147493,85.273,85.245,0.67612967]
[1771368620737,0.72147493,85.272,85.245,0.67612967]
[1771368622346,0.72147493,85.27,85.247,0.67612967]
[1771368626852,0.72147493,85.27,85.249,0.67612967]
[1771368627226,0.72147493,85.274,85.249,0.67612967]
[1771368631249,0.72147493,85.274,85.251,0.67612967]
[1771368632130,0.72147493,85.273,85.251,0.67612967]
[1771368633152,0.72147493,85.281,85.253,0.67612967]
[1771368633341,0.72147493,85.288,85.26,2.38142124]
[1771368633545,0.72147493,85.288,85.261,0.67612967]
[1771368637663,0.72147493,85.288,85.263,0.67612967]
[1771368638070,0.72147493,85.286,85.263,0.67612967]
[1771368639760,0.72147493,85.284,85.263,0.67612967]
[1771368639940,11.72539133,85.285,85.263,0.67612967]
[1771368642871,11.72484142,85.289,85.263,0.67612967]
[1771368644252,0.72147493,85.288,85.263,0.67612967]
[1771368644458,0.72147493,85.297,85.265,0.67612967]
[1771368646757,0.66826418,85.295,85.265,0.67612967]
[1771368647468,0.66826418,85.295,85.267,0.6742097]
[1771368648863,11.7241541,85.294,85.267,0.6742097]
[1771368649186,0.66826418,85.293,85.267,0.6742097]
[1771368654368,11.72442902,85.292,85.267,0.6742097]
[1771368654552,0.68981595,85.291,85.267,0.6742097]
[1771368654754,0.68981595,85.289,85.258,0.65990737]
[1771368655954,11.72497889,85.288,85.258,0.65990737]
[1771368656158,0.68981595,85.287,85.258,0.65990737]
[1771368661583,0.68981595,85.285,85.258,0.65990737]
[1771368662881,0.68981595,85.285,85.245,0.65990737]
[1771368663277,0.68981595,85.285,85.25,2.38142124]
[1771368663470,0.68981595,85.285,85.251,0.65990737]
[1771368664681,19.36,85.294,85.251,0.65990737]
[1771368664682,0.68981595,85.283,85.251,0.65990737]
[1771368666888,0.68981595,85.281,85.251,0.65990737]
[1771368668983,2.38142124,85.29,85.251,0.65990737]
[1771368668984,0.68981595,85.279,85.251,0.65990737]
[1771368671666,0.68981595,85.277,85.251,0.65990737]
[1771368675590,0.71300469,85.275,85.251,0.65990737]
[1771368683102,0.71300469,85.273,85.245,0.69568875]
[1771368684778,0.71300469,85.271,85.241,0.69568875]
[1771368686187,0.71300469,85.269,85.241,0.69568875]
[1771368687491,0.71300469,85.267,85.241,0.69568875]
[1771368689702,0.71300469,85.265,85.241,0.69568875]
[1771368689885,0.71300469,85.265,85.24,0.2]
[1771368690090,0.71300469,85.265,85.241,0.69568875]
[1771368692190,0.71300469,85.263,85.241,0.69568875]
[1771368692391,0.71300469,85.262,85.241,0.69568875]
[1771368694312,0.66100322,85.26,85.241,0.69568875]
[1771368696711,0.66100322,85.258,85.23,2.58088291]
[1771368697707,0.66100322,85.256,85.23,2.58088291]
[1771368698714,0.66100322,85.256,85.231,0.70053464]
[1771368699517,0.66100322,85.256,85.23,2.58088291]
[1771368699518,0.66100322,85.256,85.23,0.2]
[1771368699704,0.66100322,85.254,85.231,0.70053464]
[1771368700708,0.66100322,85.254,85.23,0.2]
[1771368701226,0.66100322,85.249,85.22,0.2]
[1771368702506,0.66100322,85.247,85.22,0.2]
[1771368705423,0.67766643,85.245,85.22,0.2]
[1771368705807,0.67766643,85.243,85.22,0.2]
[1771368706204,0.67766643,85.243,85.22,1e-08]
[1771368706433,0.67766643,85.241,85.22,1e-08]
[1771368707516,0.67766643,85.239,85.22,1e-08]
[1771368708925,0.67766643,85.237,85.22,1e-08]
[1771368709227,0.67766643,85.237,85.201,0.65205609]
[1771368711205,0.67766643,85.235,85.201,0.65205609]
[1771368711615,0.67766643,85.235,85.19,2.58088291]
[1771368713722,0.66345297,85.233,85.191,0.11106532]
[1771368715016,0.66345297,85.233,85.192,0.11039966]
[1771368715222,0.66345297,85.233,85.201,0.11039966]
[1771368715422,0.66345297,85.231,85.201,0.11039966]
[1771368715622,0.66345297,85.229,85.201,0.11039966]
[1771368718935,11.7332332,85.228,85.201,0.11039966]
[1771368719234,11.7332332,85.228,85.211,0.11048302]
[1771368721027,29.9944711,85.234,85.211,0.11048302]
[1771368721436,0.66345297,85.233,85.211,0.11048302]
[1771368721734,29.32631403,85.248,85.22,2.38088291]
[1771368722042,41.05716329,85.247,85.221,0.6891321]
[1771368723830,0.66023244,85.246,85.221,0.6891321]
[1771368725318,0.66023244,85.244,85.221,0.6891321]
[1771368727324,0.66023244,85.242,85.221,0.6891321]
[1771368728431,11.73144378,85.241,85.221,0.6891321]
[1771368728738,0.66023244,85.24,85.221,0.6891321]
[1771368729944,0.66023244,85.238,85.221,0.6891321]
[1771368732033,12.39222676,85.237,85.221,0.6891321]
[1771368732448,0.66023244,85.236,85.221,0.6891321]
[1771368733836,0.66023244,85.234,85.2,2.38275744]
[1771368735852,0.68384046,85.232,85.201,0.0865903]
[1771368737049,0.68384046,85.232,85.202,0.08675483]
[1771368737967,0.68384046,85.23,85.202,0.08675483]
[1771368741358,0.68384046,85.228,85.202,0.08675483]
[1771368746668,0.68384046,85.226,85.202,0.08675483]
[1771368749968,0.68384046,85.224,85.202,0.08675483]
[1771368752071,0.68384046,85.223,85.202,0.08675483]
[1771368752372,0.68384046,85.222,85.201,0.08821099]
[1771368754663,0.68384046,85.22,85.201,0.08821099]
[1771368755660,0.68384046,85.22,85.193,0.08847786]
[1771368758282,0.68384046,85.227,85.201,0.08873564]
[1771368760767,0.68384046,85.225,85.201,0.08873564]
[1771368761351,0.68384046,85.225,85.19,0.2]
[1771368761778,0.68384046,85.219,85.19,0.2]
[1771368762356,0.68384046,85.217,85.19,0.2]
[1771368763472,41.07209912,85.216,85.19,0.2]
[1771368763671,0.68384046,85.215,85.19,0.2]
[1771368764585,0.67629254,85.213,85.19,0.2]
[1771368764767,0.67629254,85.209,85.18,1e-08]
[1771368764961,0.67629254,85.199,85.18,1e-08]
[1771368765281,0.67629254,85.197,85.17,0.2]
[1771368769788,0.67629254,85.189,85.16,0.2]
[1771368769978,0.67629254,85.189,85.161,0.08968188]
[1771368770566,0.67629254,85.189,85.161,0.08975497]
[1771368773484,0.68692504,85.187,85.161,0.08975497]
[1771368775767,0.68692504,85.185,85.161,0.08975497]
[1771368777467,0.68692504,85.185,85.16,0.2]
[1771368777669,0.68692504,85.183,85.16,0.29031027]
[1771368778586,0.68692504,85.183,85.161,0.09037614]
[1771368780398,11.73956939,85.182,85.161,0.09037614]
[1771368780781,0.68692504,85.181,85.161,0.09037614]
[1771368780990,11.73956939,85.182,85.161,0.09037614]
[1771368781188,0.68692504,85.181,85.161,0.09037614]
[1771368785882,99.78868278,85.18,85.14,0.2]
[1771368786082,0.68692504,85.159,85.121,0.09087661]
[1771368786284,0.68692504,85.157,85.121,0.09087661]
[1771368787997,2.38275744,85.16,85.121,0.09087661]
[1771368787998,0.68692504,85.155,85.121,0.09087661]
[1771368788202,0.68692504,85.155,85.122,0.09099466]
[1771368790397,0.68692504,85.153,85.122,0.09099466]
[1771368790586,11.74342955,85.154,85.131,0.09111002]
[1771368790786,12.43035459,85.154,85.131,0.09111002]
[1771368790998,0.68692504,85.153,85.131,0.09111002]
[1771368793206,0.68692504,85.151,85.124,0.09127814]
[1771368796603,0.68988497,85.149,85.124,0.09127814]
[1771368797904,0.68988497,85.153,85.124,0.09127814]
[1771368798208,11.74345436,85.154,85.124,0.09127814]
[1771368798511,29.35541391,85.164,85.141,0.09159738]
[1771368798512,11.74253421,85.161,85.141,0.09159738]
[1771368798990,0.68988497,85.165,85.141,0.09159738]
[1771368803313,0.68988497,85.163,85.141,0.09159738]
[1771368804306,0.68988497,85.161,85.141,0.09159738]
[1771368806617,11.74260216,85.16,85.131,0.09199004]
[1771368806800,0.68988497,85.159,85.131,0.09199004]
[1771368807722,0.68988497,85.157,85.121,0.09203662]
[1771368810124,0.68988497,85.155,85.122,0.09217317]
[1771368812120,0.68988497,85.153,85.122,0.09217317]
[1771368813530,20.24,85.173,85.11,0.2]
[1771368813531,0.68988497,85.139,85.11,0.2]
[1771368816237,0.68988497,85.137,85.11,0.2]
[1771368816549,0.68988497,85.137,85.077,4.61729252]
[1771368816550,0.68988497,85.119,85.035,0.29243248]
[1771368816712,240.78554815,85.138,85.061,0.29243248]
[1771368816713,0.68988497,85.099,85.061,0.29243248]
[1771368818129,0.68988497,85.097,85.061,0.29243248]
[1771368818430,0.68988497,85.097,85.07,2.68010636]
[1771368818634,2.38759136,85.09,85.031,0.292515]
[1771368818931,0.68988497,85.089,85.051,0.292515]
[1771368820732,0.68988497,85.087,85.051,0.292515]
[1771368822530,0.68988497,85.085,85.051,0.292515]
[1771368824639,0.69963711,85.083,85.051,0.292515]
[1771368826316,0.69963711,85.083,85.053,0.29481312]
[1771368826736,0.69963711,85.081,85.053,0.29481312]
[1771368829342,0.69963711,85.079,85.053,0.29481312]
[1771368829917,11.75364362,85.08,85.053,0.29481312]
[1771368830122,11.7510194,85.099,85.061,0.69248402]
[1771368831832,11.7510194,85.099,85.062,11.75613082]
[1771368832028,0.69963711,85.098,85.071,0.69248402]
[1771368833538,11.75129558,85.097,85.071,0.69248402]
[1771368833733,0.70702714,85.119,85.081,0.67188791]
[1771368834534,11.74825832,85.119,85.081,0.67188791]
[1771368834734,0.70702714,85.118,85.081,0.67188791]
[1771368835449,0.70702714,85.116,85.083,0.67188791]
[1771368837731,0.70702714,85.114,85.085,0.67188791]
[1771368839852,0.70702714,85.112,85.085,0.67188791]
[1771368841935,0.70702714,85.11,85.085,0.67188791]
[1771368844155,0.70702714,85.108,85.085,0.67188791]
[1771368846948,20.94702714,85.123,85.087,0.67188791]
[1771368847148,0.70702714,85.122,85.087,0.67188791]
[1771368847446,0.70702714,85.119,85.087,0.67188791]
[1771368849665,0.70702714,85.117,85.089,0.67188791]
[1771368851049,11.74839634,85.118,85.091,0.67188791]
[1771368851565,12.45542348,85.118,85.091,0.67188791]
[1771368851764,11.74839634,85.118,85.091,0.67188791]
[1771368851954,0.70702714,85.117,85.091,0.67188791]
[1771368852868,11.7486724,85.116,85.091,0.67188791]
[1771368853269,12.45569954,85.116,85.091,0.67188791]
[1771368853869,0.70702714,85.115,85.091,0.67188791]
[1771368854249,11.74687826,85.129,85.093,0.67188791]
[1771368854569,0.70702714,85.128,85.093,0.67188791]
[1771368854870,0.70702714,85.128,85.101,0.67400968]
[1771368855072,0.70702714,85.128,85.093,0.67400968]
[1771368860077,0.66293131,85.126,85.093,0.67400968]
[1771368861276,0.66293131,85.124,85.093,0.67400968]
[1771368865772,0.66293131,85.122,85.093,0.67400968]